[Event "January 2 Early 2024"]
[Site "https://www.chess.com"]
[Date "2024.01.02"]
[Round "2"]
[White "Urbina Perez, Juan Antonio"]
[Black "Kohler, Aran"]
[Result "0-1"]
[Board "225"]
[TimeControl "180+1"]
[WhiteFideId "2217368"]
[BlackFideId "1002856"]
[WhiteElo "2466"]
[BlackElo "2201"]
[WhiteTeam "ESP"]
[BlackTeam "NED"]
[WhiteClock "0:00:52"]
[BlackClock "0:01:17"]

1. e4 {[%clk 0:02:54]}  c6 {[%clk 0:02:59]} 2. Nf3 {[%clk 0:02:52]}  d5 {[%clk 0:02:59]} 3. d3 {[%clk 0:02:53]}  dxe4 {[%clk 0:02:56]} 4. dxe4 {[%clk 0:02:54]}  Qxd1+ {[%clk 0:02:55]} 5. Kxd1 {[%clk 0:02:54]}  Bg4 {[%clk 0:02:54]} 6. Be2 {[%clk 0:02:54]}  Nd7 {[%clk 0:02:54]} 7. Nfd2 {[%clk 0:02:54]}  Bxe2+ {[%clk 0:02:52]} 8. Kxe2 {[%clk 0:02:55]}  e6 {[%clk 0:02:51]} 9. f3 {[%clk 0:02:53]}  Bc5 {[%clk 0:02:51]} 10. a4 {[%clk 0:02:53]}  a5 {[%clk 0:02:47]} 11. Nb3 {[%clk 0:02:50]}  Bb6 {[%clk 0:02:45]} 12. c3 {[%clk 0:02:45]}  Ngf6 {[%clk 0:02:41]} 13. Na3 {[%clk 0:02:43]}  O-O {[%clk 0:02:27]} 14. Rd1 {[%clk 0:02:42]}  Rfd8 {[%clk 0:02:22]} 15. Bf4 {[%clk 0:02:41]}  e5 {[%clk 0:02:20]} 16. Bg5 {[%clk 0:02:39]}  h6 {[%clk 0:02:18]} 17. Bxf6 {[%clk 0:02:39]}  Nxf6 {[%clk 0:02:19]} 18. Nc4 {[%clk 0:02:35]}  Bc7 {[%clk 0:02:17]} 19. Rxd8+ {[%clk 0:02:33]}  Bxd8 {[%clk 0:02:11]} 20. g3 {[%clk 0:02:19]}  Bc7 {[%clk 0:02:11]} 21. Rd1 {[%clk 0:02:17]}  Kf8 {[%clk 0:02:06]} 22. Nc5 {[%clk 0:02:11]}  b5 {[%clk 0:02:00]} 23. axb5 {[%clk 0:02:08]}  cxb5 {[%clk 0:02:00]} 24. Ne3 {[%clk 0:02:07]}  Ke7 {[%clk 0:01:55]} 25. Nd5+ {[%clk 0:02:01]}  Nxd5 {[%clk 0:01:54]} 26. Rxd5 {[%clk 0:02:00]}  Rd8 {[%clk 0:01:50]} 27. b3 {[%clk 0:01:41]}  Rxd5 {[%clk 0:01:48]} 28. exd5 {[%clk 0:01:42]}  Kd6 {[%clk 0:01:48]} 29. Ne4+ {[%clk 0:01:36]}  Kxd5 {[%clk 0:01:47]} 30. Kd3 {[%clk 0:01:37]}  f5 {[%clk 0:01:42]} 31. c4+ {[%clk 0:01:36]}  bxc4+ {[%clk 0:01:41]} 32. bxc4+ {[%clk 0:01:37]}  Kc6 {[%clk 0:01:40]} 33. Nc3 {[%clk 0:01:37]}  Bb6 {[%clk 0:01:39]} 34. g4 {[%clk 0:01:34]}  g6 {[%clk 0:01:35]} 35. Nd5 {[%clk 0:01:33]}  Bc5 {[%clk 0:01:32]} 36. h3 {[%clk 0:01:27]}  a4 {[%clk 0:01:31]} 37. Kc3 {[%clk 0:01:27]}  e4 {[%clk 0:01:30]} 38. gxf5 {[%clk 0:01:22]}  gxf5 {[%clk 0:01:29]} 39. fxe4 {[%clk 0:01:22]}  fxe4 {[%clk 0:01:29]} 40. Nf4 {[%clk 0:01:13]}  Kd6 {[%clk 0:01:28]} 41. Nd5 {[%clk 0:01:06]}  e3 {[%clk 0:01:24]} 42. Kd3 {[%clk 0:01:05]}  a3 {[%clk 0:01:24]} 43. Nc3 {[%clk 0:01:05]}  Ke5 {[%clk 0:01:22]} 44. Na2 {[%clk 0:00:59]}  Kf4 {[%clk 0:01:22]} 45. Ke2 {[%clk 0:01:00]}  Kg3 {[%clk 0:01:22]} 46. Nc3 {[%clk 0:00:58]}  Kxh3 {[%clk 0:01:22]} 47. Kf3 {[%clk 0:00:57]}  Kh2 {[%clk 0:01:19]} 48. Ke2 {[%clk 0:00:52]}  Kg2 {[%clk 0:01:17]} 0-1

[Event "January 2 Early 2024"]
[Site "https://www.chess.com"]
[Date "2024.01.02"]
[Round "2"]
[White "Kubicka, Anna"]
[Black "Ray, Sarathi"]
[Result "1-0"]
[Board "227"]
[TimeControl "180+1"]
[WhiteFideId "1152254"]
[BlackFideId "2032490"]
[WhiteElo "2464"]
[BlackElo "2194"]
[WhiteTeam "POL"]
[BlackTeam "USA"]
[WhiteClock "0:01:11"]
[BlackClock "0:00:00"]

1. e4 {[%clk 0:03:00]}  c6 {[%clk 0:02:58]} 2. d4 {[%clk 0:03:00]}  d5 {[%clk 0:02:55]} 3. Nc3 {[%clk 0:03:00]}  dxe4 {[%clk 0:02:55]} 4. Nxe4 {[%clk 0:03:01]}  Nf6 {[%clk 0:02:54]} 5. Nxf6+ {[%clk 0:03:01]}  exf6 {[%clk 0:02:55]} 6. Bd3 {[%clk 0:03:01]}  Bd6 {[%clk 0:02:53]} 7. c3 {[%clk 0:03:00]}  O-O {[%clk 0:02:52]} 8. Ne2 {[%clk 0:03:00]}  Re8 {[%clk 0:02:51]} 9. Be3 {[%clk 0:03:00]}  Nd7 {[%clk 0:02:49]} 10. Qc2 {[%clk 0:03:00]}  h5 {[%clk 0:02:44]} 11. O-O-O {[%clk 0:03:00]}  Nf8 {[%clk 0:02:44]} 12. Kb1 {[%clk 0:02:59]}  Be6 {[%clk 0:02:36]} 13. Rhe1 {[%clk 0:02:59]}  b5 {[%clk 0:02:24]} 14. Bf4 {[%clk 0:02:54]}  a5 {[%clk 0:02:05]} 15. g3 {[%clk 0:02:51]}  Bg4 {[%clk 0:02:00]} 16. Bxd6 {[%clk 0:02:44]}  Qxd6 {[%clk 0:01:59]} 17. h3 {[%clk 0:02:44]}  Bf3 {[%clk 0:01:52]} 18. Rc1 {[%clk 0:02:40]}  Bd5 {[%clk 0:01:49]} 19. Nf4 {[%clk 0:02:40]}  g6 {[%clk 0:01:40]} 20. Nxd5 {[%clk 0:02:25]}  Qxd5 {[%clk 0:01:39]} 21. f4 {[%clk 0:02:26]}  Qf3 {[%clk 0:01:33]} 22. f5 {[%clk 0:02:14]}  Rxe1 {[%clk 0:01:25]} 23. Rxe1 {[%clk 0:02:15]}  Qxg3 {[%clk 0:01:24]} 24. Qd2 {[%clk 0:02:11]}  g5 {[%clk 0:01:19]} 25. Re7 {[%clk 0:02:07]}  Qd6 {[%clk 0:00:56]} 26. Qe2 {[%clk 0:02:02]}  Rd8 {[%clk 0:00:50]} 27. Ra7 {[%clk 0:01:58]}  b4 {[%clk 0:00:38]} 28. Qxh5 {[%clk 0:01:55]}  Rd7 {[%clk 0:00:28]} 29. Rxd7 {[%clk 0:01:54]}  Qxd7 {[%clk 0:00:23]} 30. h4 {[%clk 0:01:54]}  bxc3 {[%clk 0:00:20]} 31. bxc3 {[%clk 0:01:49]}  Nh7 {[%clk 0:00:20]} 32. hxg5 {[%clk 0:01:45]}  Nxg5 {[%clk 0:00:20]} 33. Qh2 {[%clk 0:01:40]}  Qd5 {[%clk 0:00:19]} 34. Qc7 {[%clk 0:01:35]}  Qh1+ {[%clk 0:00:15]} 35. Kb2 {[%clk 0:01:34]}  Qg2+ {[%clk 0:00:16]} 36. Bc2 {[%clk 0:01:34]}  Qf1 {[%clk 0:00:15]} 37. Qxc6 {[%clk 0:01:31]}  Qf2 {[%clk 0:00:11]} 38. Qxf6 {[%clk 0:01:29]}  Nf3 {[%clk 0:00:08]} 39. Qd8+ {[%clk 0:01:26]}  Kh7 {[%clk 0:00:07]} 40. f6+ {[%clk 0:01:25]}  Kh6 {[%clk 0:00:06]} 41. Qh8+ {[%clk 0:01:15]}  Kg5 {[%clk 0:00:06]} 42. Qg7+ {[%clk 0:01:15]}  Kf4 {[%clk 0:00:05]} 43. Qxf7 {[%clk 0:01:10]}  Ne1 {[%clk 0:00:00]} 44. Qc7+ {[%clk 0:01:11]} 1-0

[Event "January 2 Early 2024"]
[Site "https://www.chess.com"]
[Date "2024.01.02"]
[Round "2"]
[White "Sailer, Mike"]
[Black "Dyulgerov, Volen"]
[Result "0-1"]
[Board "228"]
[TimeControl "180+1"]
[WhiteFideId "2012901"]
[BlackFideId "2918978"]
[WhiteElo "2187"]
[BlackElo "2460"]
[WhiteTeam "USA"]
[BlackTeam "BUL"]
[WhiteClock "0:00:00"]
[BlackClock "0:00:06"]

1. d4 {[%clk 0:03:00]}  e5 {[%clk 0:02:59]} 2. dxe5 {[%clk 0:02:57]}  d6 {[%clk 0:02:58]} 3. Nf3 {[%clk 0:02:54]}  Nc6 {[%clk 0:02:58]} 4. Bf4 {[%clk 0:02:54]}  Bg4 {[%clk 0:02:58]} 5. exd6 {[%clk 0:02:51]}  Qf6 {[%clk 0:02:58]} 6. Qc1 {[%clk 0:02:33]}  Bxd6 {[%clk 0:02:47]} 7. Bxd6 {[%clk 0:02:32]}  Qxd6 {[%clk 0:02:45]} 8. Nbd2 {[%clk 0:02:26]}  O-O-O {[%clk 0:02:44]} 9. c3 {[%clk 0:02:14]}  Nf6 {[%clk 0:02:42]} 10. e3 {[%clk 0:02:13]}  Ne5 {[%clk 0:02:28]} 11. Nxe5 {[%clk 0:02:06]}  Qxe5 {[%clk 0:02:26]} 12. Be2 {[%clk 0:01:42]}  Bxe2 {[%clk 0:02:24]} 13. Kxe2 {[%clk 0:01:42]}  Rhe8 {[%clk 0:02:16]} 14. Nf3 {[%clk 0:01:39]}  Qe4 {[%clk 0:02:05]} 15. Rd1 {[%clk 0:01:37]}  Qc4+ {[%clk 0:01:52]} 16. Ke1 {[%clk 0:01:32]}  Ne4 {[%clk 0:01:32]} 17. Rd4 {[%clk 0:01:23]}  Rxd4 {[%clk 0:01:26]} 18. cxd4 {[%clk 0:01:21]}  Qb5 {[%clk 0:01:08]} 19. Qc2 {[%clk 0:01:15]}  g5 {[%clk 0:01:00]} 20. Rc1 {[%clk 0:01:12]}  c6 {[%clk 0:01:01]} 21. Qc4 {[%clk 0:01:01]}  Qxb2 {[%clk 0:00:58]} 22. Rc2 {[%clk 0:00:46]}  Qb1+ {[%clk 0:00:54]} 23. Rc1 {[%clk 0:00:39]}  Qb2 {[%clk 0:00:48]} 24. Rc2 {[%clk 0:00:36]}  Qa3 {[%clk 0:00:36]} 25. Ne5 {[%clk 0:00:21]}  Nd6 {[%clk 0:00:27]} 26. Qc5 {[%clk 0:00:15]}  Qxc5 {[%clk 0:00:23]} 27. Rxc5 {[%clk 0:00:14]}  f6 {[%clk 0:00:23]} 28. Nc4 {[%clk 0:00:11]}  Kc7 {[%clk 0:00:18]} 29. Nxd6 {[%clk 0:00:11]}  Kxd6 {[%clk 0:00:18]} 30. Kd2 {[%clk 0:00:12]}  b6 {[%clk 0:00:16]} 31. Rc3 {[%clk 0:00:12]}  h5 {[%clk 0:00:16]} 32. Ra3 {[%clk 0:00:11]}  Re7 {[%clk 0:00:16]} 33. Rc3 {[%clk 0:00:10]}  h4 {[%clk 0:00:14]} 34. h3 {[%clk 0:00:10]}  Rb7 {[%clk 0:00:13]} 35. Kd3 {[%clk 0:00:09]}  f5 {[%clk 0:00:13]} 36. f3 {[%clk 0:00:10]}  Re7 {[%clk 0:00:13]} 37. e4 {[%clk 0:00:10]}  fxe4+ {[%clk 0:00:13]} 38. fxe4 {[%clk 0:00:10]}  Rf7 {[%clk 0:00:14]} 39. Ke2 {[%clk 0:00:10]}  Rf4 {[%clk 0:00:13]} 40. Re3 {[%clk 0:00:11]}  c5 {[%clk 0:00:14]} 41. dxc5+ {[%clk 0:00:11]}  bxc5 {[%clk 0:00:14]} 42. Ra3 {[%clk 0:00:08]}  Rxe4+ {[%clk 0:00:13]} 43. Kf3 {[%clk 0:00:08]}  Rf4+ {[%clk 0:00:13]} 44. Ke3 {[%clk 0:00:08]}  Rf7 {[%clk 0:00:14]} 45. Ra6+ {[%clk 0:00:08]}  Kd5 {[%clk 0:00:12]} 46. Rg6 {[%clk 0:00:08]}  Re7+ {[%clk 0:00:12]} 47. Kd3 {[%clk 0:00:09]}  Re5 {[%clk 0:00:12]} 48. Rg7 {[%clk 0:00:09]}  c4+ {[%clk 0:00:12]} 49. Kd2 {[%clk 0:00:08]}  Kd4 {[%clk 0:00:11]} 50. Rd7+ {[%clk 0:00:08]}  Rd5 {[%clk 0:00:12]} 51. Rxa7 {[%clk 0:00:09]}  Rf5 {[%clk 0:00:07]} 52. Rd7+ {[%clk 0:00:08]}  Kc5 {[%clk 0:00:08]} 53. Rc7+ {[%clk 0:00:08]}  Kb4 {[%clk 0:00:08]} 54. Rb7+ {[%clk 0:00:08]}  Kc5 {[%clk 0:00:09]} 55. Rc7+ {[%clk 0:00:08]}  Kd5 {[%clk 0:00:09]} 56. Rd7+ {[%clk 0:00:08]}  Ke4 {[%clk 0:00:09]} 57. Re7+ {[%clk 0:00:08]}  Kf4 {[%clk 0:00:09]} 58. Kc3 {[%clk 0:00:06]}  Ra5 {[%clk 0:00:07]} 59. Kxc4 {[%clk 0:00:05]}  Rxa2 {[%clk 0:00:06]} 60. Re2 {[%clk 0:00:00]}  Rxe2 {[%clk 0:00:06]} 0-1

[Event "January 2 Early 2024"]
[Site "https://www.chess.com"]
[Date "2024.01.02"]
[Round "2"]
[White "Montano Vicente, Guadalupe"]
[Black "Valle Luis, Leo"]
[Result "1-0"]
[Board "231"]
[TimeControl "180+1"]
[WhiteFideId "5181399"]
[BlackFideId "54577187"]
[WhiteElo "2173"]
[BlackElo "2457"]
[WhiteTeam "MEX"]
[BlackTeam "ESP"]
[WhiteClock "0:00:13"]
[BlackClock "0:00:04"]

1. d4 {[%clk 0:03:00]}  Nf6 {[%clk 0:02:59]} 2. c4 {[%clk 0:02:56]}  e6 {[%clk 0:02:59]} 3. Nf3 {[%clk 0:02:51]}  b6 {[%clk 0:02:59]} 4. Nc3 {[%clk 0:02:47]}  Bb7 {[%clk 0:02:53]} 5. Qc2 {[%clk 0:02:44]}  Bb4 {[%clk 0:02:53]} 6. Bd2 {[%clk 0:02:37]}  Bxc3 {[%clk 0:02:52]} 7. Bxc3 {[%clk 0:02:36]}  Ne4 {[%clk 0:02:51]} 8. g3 {[%clk 0:02:34]}  d6 {[%clk 0:02:41]} 9. Bg2 {[%clk 0:02:32]}  Nxc3 {[%clk 0:02:41]} 10. Qxc3 {[%clk 0:02:32]}  O-O {[%clk 0:02:40]} 11. O-O {[%clk 0:02:29]}  Nd7 {[%clk 0:02:39]} 12. Rfe1 {[%clk 0:02:26]}  f5 {[%clk 0:02:38]} 13. Rac1 {[%clk 0:02:19]}  Qe7 {[%clk 0:02:30]} 14. b4 {[%clk 0:02:17]}  Nf6 {[%clk 0:02:15]} 15. c5 {[%clk 0:01:52]}  Ne4 {[%clk 0:02:01]} 16. Qb2 {[%clk 0:01:51]}  Bd5 {[%clk 0:01:58]} 17. Nd2 {[%clk 0:01:37]}  c6 {[%clk 0:01:14]} 18. Qc2 {[%clk 0:01:01]}  dxc5 {[%clk 0:01:07]} 19. bxc5 {[%clk 0:00:58]}  Nxd2 {[%clk 0:00:55]} 20. Bxd5 {[%clk 0:00:55]}  exd5 {[%clk 0:00:56]} 21. Qxd2 {[%clk 0:00:54]}  b5 {[%clk 0:00:56]} 22. Qa5 {[%clk 0:00:46]}  Qd8 {[%clk 0:00:47]} 23. Qxd8 {[%clk 0:00:44]}  Rfxd8 {[%clk 0:00:48]} 24. a4 {[%clk 0:00:43]}  a6 {[%clk 0:00:37]} 25. Ra1 {[%clk 0:00:41]}  Kf7 {[%clk 0:00:25]} 26. Kg2 {[%clk 0:00:40]}  Ke6 {[%clk 0:00:25]} 27. Kf3 {[%clk 0:00:39]}  Kd7 {[%clk 0:00:22]} 28. Reb1 {[%clk 0:00:38]}  Kc7 {[%clk 0:00:20]} 29. Kf4 {[%clk 0:00:31]}  g6 {[%clk 0:00:19]} 30. Kg5 {[%clk 0:00:29]}  Kb7 {[%clk 0:00:19]} 31. Kh6 {[%clk 0:00:29]}  Rd7 {[%clk 0:00:19]} 32. e3 {[%clk 0:00:20]}  Rg8 {[%clk 0:00:12]} 33. h4 {[%clk 0:00:19]}  Rdg7 {[%clk 0:00:08]} 34. Kg5 {[%clk 0:00:18]}  Rf7 {[%clk 0:00:08]} 35. Rb3 {[%clk 0:00:17]}  Rh8 {[%clk 0:00:07]} 36. Rba3 {[%clk 0:00:14]}  Rg7 {[%clk 0:00:06]} 37. axb5 {[%clk 0:00:14]}  cxb5 {[%clk 0:00:03]} 38. Rxa6 {[%clk 0:00:14]}  h6+ {[%clk 0:00:03]} 39. Kf4 {[%clk 0:00:14]}  Rc7 {[%clk 0:00:04]} 40. Rb6+ {[%clk 0:00:13]}  Kc8 {[%clk 0:00:04]} 41. Ra8+ {[%clk 0:00:13]}  Kd7 {[%clk 0:00:04]} 42. Rxh8 {[%clk 0:00:13]} 1-0

[Event "January 2 Early 2024"]
[Site "https://www.chess.com"]
[Date "2024.01.02"]
[Round "2"]
[White "Tagliati, Eleonore"]
[Black "Reprintsev, Alexander"]
[Result "0-1"]
[Board "232"]
[TimeControl "180+1"]
[WhiteFideId "45172234"]
[BlackFideId "14100541"]
[WhiteElo "2169"]
[BlackElo "2457"]
[WhiteTeam "FRA"]
[BlackTeam "UKR"]
[WhiteClock "0:01:33"]
[BlackClock "0:01:55"]

1. e4 {[%clk 0:03:00]}  d5 {[%clk 0:02:59]} 2. exd5 {[%clk 0:03:00]}  Qxd5 {[%clk 0:02:59]} 3. Nc3 {[%clk 0:03:00]}  Qa5 {[%clk 0:02:59]} 4. d4 {[%clk 0:03:00]}  Nf6 {[%clk 0:02:59]} 5. Nf3 {[%clk 0:03:00]}  Nc6 {[%clk 0:02:58]} 6. Bb5 {[%clk 0:02:59]}  Ne4 {[%clk 0:02:58]} 7. Bd2 {[%clk 0:02:40]}  Nxc3 {[%clk 0:02:57]} 8. Bxc6+ {[%clk 0:02:40]}  bxc6 {[%clk 0:02:57]} 9. Bxc3 {[%clk 0:02:40]}  Qd5 {[%clk 0:02:57]} 10. h3 {[%clk 0:02:38]}  Ba6 {[%clk 0:02:56]} 11. Qd2 {[%clk 0:02:37]}  e6 {[%clk 0:02:56]} 12. Qg5 {[%clk 0:02:27]}  Qe4+ {[%clk 0:02:32]} 13. Qe3 {[%clk 0:02:21]}  Qxc2 {[%clk 0:02:29]} 14. Ne5 {[%clk 0:02:15]}  Bd6 {[%clk 0:02:25]} 15. Nxc6 {[%clk 0:02:01]}  O-O {[%clk 0:02:23]} 16. Rc1 {[%clk 0:01:58]}  Qa4 {[%clk 0:02:18]} 17. Ne5 {[%clk 0:01:58]}  Qxa2 {[%clk 0:02:12]} 18. f3 {[%clk 0:01:57]}  f6 {[%clk 0:02:09]} 19. Nd7 {[%clk 0:01:50]}  Bg3+ {[%clk 0:02:08]} 20. Kd2 {[%clk 0:01:49]}  e5 {[%clk 0:01:58]} 21. Nc5 {[%clk 0:01:33]}  Bf4 {[%clk 0:01:55]} 0-1

[Event "January 2 Early 2024"]
[Site "https://www.chess.com"]
[Date "2024.01.02"]
[Round "2"]
[White "Nemec, Jachym"]
[Black "Guzman Lozano, Campo Elias"]
[Result "0-1"]
[Board "233"]
[TimeControl "180+1"]
[WhiteFideId "23716525"]
[BlackFideId "4403746"]
[WhiteElo "2456"]
[BlackElo "2169"]
[WhiteTeam "CZE"]
[BlackTeam "COL"]
[WhiteClock "0:01:00"]
[BlackClock "0:00:45"]

1. b3 {[%clk 0:03:00]}  e5 {[%clk 0:02:58]} 2. Bb2 {[%clk 0:03:01]}  Nc6 {[%clk 0:02:58]} 3. e3 {[%clk 0:03:01]}  Nf6 {[%clk 0:02:58]} 4. d4 {[%clk 0:02:52]}  exd4 {[%clk 0:02:56]} 5. exd4 {[%clk 0:02:53]}  Bb4+ {[%clk 0:02:55]} 6. c3 {[%clk 0:02:53]}  Be7 {[%clk 0:02:53]} 7. d5 {[%clk 0:02:52]}  Ne5 {[%clk 0:02:51]} 8. c4 {[%clk 0:02:51]}  d6 {[%clk 0:02:51]} 9. Be2 {[%clk 0:02:51]}  O-O {[%clk 0:02:50]} 10. Nd2 {[%clk 0:02:51]}  Bf5 {[%clk 0:02:49]} 11. Ndf3 {[%clk 0:02:49]}  Nxf3+ {[%clk 0:02:48]} 12. Nxf3 {[%clk 0:02:50]}  Re8 {[%clk 0:02:47]} 13. O-O {[%clk 0:02:49]}  Nd7 {[%clk 0:02:43]} 14. Nd4 {[%clk 0:02:49]}  Bg6 {[%clk 0:02:42]} 15. Bd3 {[%clk 0:02:46]}  Bf6 {[%clk 0:02:41]} 16. Bxg6 {[%clk 0:02:46]}  hxg6 {[%clk 0:02:41]} 17. Qc2 {[%clk 0:02:44]}  Ne5 {[%clk 0:02:37]} 18. Rae1 {[%clk 0:02:43]}  Qd7 {[%clk 0:02:37]} 19. f4 {[%clk 0:02:39]}  Ng4 {[%clk 0:02:36]} 20. Qd2 {[%clk 0:02:38]}  Bh4 {[%clk 0:02:32]} 21. g3 {[%clk 0:02:34]}  Bf6 {[%clk 0:02:31]} 22. h3 {[%clk 0:02:33]}  Nh6 {[%clk 0:02:30]} 23. g4 {[%clk 0:02:30]}  Nxg4 {[%clk 0:02:23]} 24. hxg4 {[%clk 0:02:29]}  Qxg4+ {[%clk 0:02:23]} 25. Qg2 {[%clk 0:02:29]}  Qh4 {[%clk 0:02:22]} 26. Nf3 {[%clk 0:02:24]}  Qxf4 {[%clk 0:02:05]} 27. Bxf6 {[%clk 0:02:22]}  Rxe1 {[%clk 0:02:02]} 28. Nxe1 {[%clk 0:02:20]}  Qe3+ {[%clk 0:01:58]} 29. Qf2 {[%clk 0:02:18]}  Qxf2+ {[%clk 0:01:54]} 30. Rxf2 {[%clk 0:02:19]}  gxf6 {[%clk 0:01:53]} 31. Rxf6 {[%clk 0:02:19]}  Kg7 {[%clk 0:01:54]} 32. Rf2 {[%clk 0:02:18]}  a5 {[%clk 0:01:53]} 33. Nc2 {[%clk 0:02:18]}  a4 {[%clk 0:01:52]} 34. b4 {[%clk 0:02:18]}  Re8 {[%clk 0:01:49]} 35. Nd4 {[%clk 0:02:10]}  Re3 {[%clk 0:01:45]} 36. Nb5 {[%clk 0:02:06]}  Re4 {[%clk 0:01:40]} 37. Rc2 {[%clk 0:02:05]}  Re7 {[%clk 0:01:35]} 38. Nc3 {[%clk 0:01:59]}  a3 {[%clk 0:01:29]} 39. Nb5 {[%clk 0:01:58]}  c6 {[%clk 0:01:18]} 40. dxc6 {[%clk 0:01:56]}  bxc6 {[%clk 0:01:18]} 41. Nxd6 {[%clk 0:01:55]}  Kf6 {[%clk 0:01:11]} 42. c5 {[%clk 0:01:54]}  Re1+ {[%clk 0:01:09]} 43. Kf2 {[%clk 0:01:54]}  Rb1 {[%clk 0:01:09]} 44. Nc4 {[%clk 0:01:54]}  Rxb4 {[%clk 0:01:08]} 45. Nxa3 {[%clk 0:01:51]}  Ke5 {[%clk 0:01:06]} 46. Nc4+ {[%clk 0:01:48]}  Kd4 {[%clk 0:01:06]} 47. Nb6 {[%clk 0:01:38]}  Kd3 {[%clk 0:00:57]} 48. Re2 {[%clk 0:01:33]}  f5 {[%clk 0:00:56]} 49. a4 {[%clk 0:01:30]}  Rb3 {[%clk 0:00:52]} 50. Ra2 {[%clk 0:01:28]}  Ke4 {[%clk 0:00:46]} 51. a5 {[%clk 0:01:27]}  Rh3 {[%clk 0:00:45]} 52. a6 {[%clk 0:01:00]}  Rh2+ {[%clk 0:00:45]} 0-1

[Event "January 2 Early 2024"]
[Site "https://www.chess.com"]
[Date "2024.01.02"]
[Round "2"]
[White "Viana, Valeria"]
[Black "Gruzman, Ilya"]
[Result "0-1"]
[Board "234"]
[TimeControl "180+1"]
[WhiteFideId "8407100"]
[BlackFideId "2812703"]
[WhiteElo "2165"]
[BlackElo "2454"]
[WhiteTeam "HON"]
[BlackTeam "ISR"]
[WhiteClock "0:00:38"]
[BlackClock "0:00:14"]

1. e4 {[%clk 0:02:59]}  c5 {[%clk 0:02:58]} 2. Nf3 {[%clk 0:02:58]}  e6 {[%clk 0:02:58]} 3. d4 {[%clk 0:02:55]}  cxd4 {[%clk 0:02:59]} 4. Nxd4 {[%clk 0:02:55]}  Nf6 {[%clk 0:02:59]} 5. Bd3 {[%clk 0:02:48]}  Nc6 {[%clk 0:02:59]} 6. Nxc6 {[%clk 0:02:48]}  bxc6 {[%clk 0:02:59]} 7. O-O {[%clk 0:02:44]}  d5 {[%clk 0:02:59]} 8. exd5 {[%clk 0:02:44]}  exd5 {[%clk 0:02:59]} 9. Re1+ {[%clk 0:02:43]}  Be6 {[%clk 0:02:59]} 10. Bg5 {[%clk 0:02:39]}  Bd6 {[%clk 0:02:56]} 11. c4 {[%clk 0:02:33]}  O-O {[%clk 0:02:55]} 12. cxd5 {[%clk 0:02:32]}  cxd5 {[%clk 0:02:55]} 13. Nc3 {[%clk 0:02:31]}  h6 {[%clk 0:02:52]} 14. Bh4 {[%clk 0:02:31]}  g5 {[%clk 0:02:51]} 15. Bg3 {[%clk 0:02:28]}  Bxg3 {[%clk 0:02:51]} 16. hxg3 {[%clk 0:02:28]}  Rc8 {[%clk 0:02:46]} 17. Qd2 {[%clk 0:02:18]}  Qd6 {[%clk 0:02:38]} 18. a3 {[%clk 0:02:10]}  Rfd8 {[%clk 0:02:38]} 19. Rad1 {[%clk 0:02:07]}  d4 {[%clk 0:02:35]} 20. Ne4 {[%clk 0:02:06]}  Nxe4 {[%clk 0:02:35]} 21. Bxe4 {[%clk 0:02:04]}  Rd7 {[%clk 0:02:21]} 22. Bd3 {[%clk 0:02:02]}  Rcd8 {[%clk 0:02:18]} 23. Qe2 {[%clk 0:02:00]}  Rc7 {[%clk 0:02:13]} 24. Qh5 {[%clk 0:01:55]}  Kg7 {[%clk 0:02:12]} 25. Qf3 {[%clk 0:01:44]}  Bd5 {[%clk 0:01:53]} 26. Qg4 {[%clk 0:01:40]}  Qf6 {[%clk 0:01:41]} 27. Qf5 {[%clk 0:01:36]}  Qxf5 {[%clk 0:01:40]} 28. Bxf5 {[%clk 0:01:35]}  Bb3 {[%clk 0:01:40]} 29. Rd3 {[%clk 0:01:34]}  Bc2 {[%clk 0:01:40]} 30. Rf3 {[%clk 0:01:33]}  Bxf5 {[%clk 0:01:40]} 31. Rxf5 {[%clk 0:01:33]}  d3 {[%clk 0:01:41]} 32. Rd1 {[%clk 0:01:33]}  Rc2 {[%clk 0:01:06]} 33. Kf1 {[%clk 0:01:22]}  Rxb2 {[%clk 0:01:05]} 34. Rf3 {[%clk 0:01:21]}  d2 {[%clk 0:01:03]} 35. Rc3 {[%clk 0:01:15]}  a5 {[%clk 0:00:32]} 36. Ke2 {[%clk 0:01:13]}  Re8+ {[%clk 0:00:28]} 37. Kf1 {[%clk 0:01:09]}  Rd8 {[%clk 0:00:27]} 38. Ke2 {[%clk 0:01:09]}  a4 {[%clk 0:00:27]} 39. Rc4 {[%clk 0:00:53]}  Rb7 {[%clk 0:00:15]} 40. Rxa4 {[%clk 0:00:50]}  Re7+ {[%clk 0:00:16]} 41. Kf1 {[%clk 0:00:50]}  Rde8 {[%clk 0:00:16]} 42. f4 {[%clk 0:00:42]}  Re1+ {[%clk 0:00:15]} 43. Kf2 {[%clk 0:00:43]}  Rxd1 {[%clk 0:00:15]} 44. Rd4 {[%clk 0:00:43]}  Ree1 {[%clk 0:00:12]} 45. fxg5 {[%clk 0:00:43]}  hxg5 {[%clk 0:00:12]} 46. g4 {[%clk 0:00:42]}  Rf1+ {[%clk 0:00:12]} 47. Ke2 {[%clk 0:00:41]}  Rde1+ {[%clk 0:00:12]} 48. Kxd2 {[%clk 0:00:41]}  Rd1+ {[%clk 0:00:13]} 49. Kc3 {[%clk 0:00:41]}  Rxd4 {[%clk 0:00:13]} 50. Kxd4 {[%clk 0:00:38]}  Ra1 {[%clk 0:00:14]} 0-1

[Event "January 2 Early 2024"]
[Site "https://www.chess.com"]
[Date "2024.01.02"]
[Round "2"]
[White "Luong Phuong Hanh"]
[Black "Dargan, Paul A G"]
[Result "0-1"]
[Board "235"]
[TimeControl "180+1"]
[WhiteFideId "12401013"]
[BlackFideId "416762"]
[WhiteElo "2452"]
[BlackElo "2161"]
[WhiteTeam "VIE"]
[BlackTeam "ENG"]
[WhiteClock "0:00:12"]
[BlackClock "0:00:20"]

1. d4 {[%clk 0:01:52]}  Nf6 {[%clk 0:02:58]} 2. Nf3 {[%clk 0:01:52]}  d5 {[%clk 0:02:57]} 3. c4 {[%clk 0:01:51]}  e6 {[%clk 0:02:58]} 4. g3 {[%clk 0:01:49]}  Be7 {[%clk 0:02:57]} 5. Bg2 {[%clk 0:01:47]}  O-O {[%clk 0:02:58]} 6. O-O {[%clk 0:01:47]}  dxc4 {[%clk 0:02:58]} 7. a4 {[%clk 0:01:44]}  a6 {[%clk 0:02:56]} 8. Ne5 {[%clk 0:01:41]}  Nc6 {[%clk 0:02:53]} 9. Nxc6 {[%clk 0:01:39]}  bxc6 {[%clk 0:02:52]} 10. Bxc6 {[%clk 0:01:39]}  Rb8 {[%clk 0:02:38]} 11. Nc3 {[%clk 0:01:37]}  Nd5 {[%clk 0:02:33]} 12. e4 {[%clk 0:01:33]}  Nb4 {[%clk 0:02:28]} 13. d5 {[%clk 0:01:32]}  exd5 {[%clk 0:02:15]} 14. Bxd5 {[%clk 0:01:32]}  Bh3 {[%clk 0:01:59]} 15. Re1 {[%clk 0:00:43]}  Nd3 {[%clk 0:01:59]} 16. Re3 {[%clk 0:00:40]}  Bc5 {[%clk 0:01:52]} 17. Rf3 {[%clk 0:00:40]}  Bg4 {[%clk 0:01:44]} 18. Be3 {[%clk 0:00:40]}  Bxe3 {[%clk 0:01:40]} 19. fxe3 {[%clk 0:00:41]}  Ne5 {[%clk 0:01:29]} 20. Rxf7 {[%clk 0:00:41]}  Rxf7 {[%clk 0:01:21]} 21. Bxf7+ {[%clk 0:00:40]}  Kxf7 {[%clk 0:01:19]} 22. Qf1+ {[%clk 0:00:38]}  Kg8 {[%clk 0:01:18]} 23. Qf4 {[%clk 0:00:36]}  Nf3+ {[%clk 0:01:13]} 24. Kf2 {[%clk 0:00:27]}  Qd2+ {[%clk 0:00:57]} 25. Ne2 {[%clk 0:00:25]}  Rf8 {[%clk 0:00:33]} 26. Qxg4 {[%clk 0:00:20]}  Ne5+ {[%clk 0:00:27]} 27. Qf4 {[%clk 0:00:20]}  Nd3+ {[%clk 0:00:27]} 28. Kf3 {[%clk 0:00:21]}  Nxf4 {[%clk 0:00:27]} 29. gxf4 {[%clk 0:00:21]}  h6 {[%clk 0:00:22]} 30. Nd4 {[%clk 0:00:20]}  Qxb2 {[%clk 0:00:21]} 31. Rg1 {[%clk 0:00:20]}  c3 {[%clk 0:00:21]} 32. Ne6 {[%clk 0:00:20]}  Rf7 {[%clk 0:00:21]} 33. Nd8 {[%clk 0:00:15]}  Rd7 {[%clk 0:00:20]} 34. Nc6 {[%clk 0:00:13]}  Qxh2 {[%clk 0:00:20]} 35. Ne5 {[%clk 0:00:12]}  Qxg1 {[%clk 0:00:20]} 0-1